fUST/lending_fUST_20250206
["ID","MTS","AMOUNT","RATE_DAILY","PERIOD"]
[351903182,1738833044091,-500.0,0.00013972,2]
[351903184,1738833044100,-500.0,0.00013972,2]
[351903186,1738833044110,-730.03,0.00013972,2]
[351903188,1738833044120,-500.0,0.00013972,2]
[351903191,1738833044129,-500.0,0.00013972,2]
[351903193,1738833044139,-1183.53,0.00013972,2]
[351903195,1738833044148,-1732.17,0.00013972,2]
[351903197,1738833044159,-500.0,0.00013972,2]
[351903198,1738833044168,-278.38155091,0.00013972,2]
[351903200,1738833044177,-681.46,0.00013972,2]
[351903202,1738833044186,-1080.42,0.00013972,2]
[351903204,1738833044195,-500.0,0.00013972,2]
[351903207,1738833044205,-500.0,0.00013972,2]
[351903209,1738833044215,-500.0,0.00013972,2]
[351903211,1738833044224,-640.44296156,0.00013972,2]
[351903213,1738833044234,-35872.88,0.00013972,2]
[351903215,1738833044243,-500.0,0.00013972,2]
[351903217,1738833044252,-500.0,0.00013972,2]
[351903219,1738833044261,-500.0,0.00013972,2]
[351903221,1738833044272,-14650.96,0.00013972,2]
[351903223,1738833044282,-500.0,0.00013972,2]
[351903224,1738833044291,-1410.09,0.00013972,2]
[351903226,1738833044300,-5062.88,0.00013972,2]
[351903228,1738833044309,-1133.82,0.00013972,2]
[351903230,1738833044319,-500.0,0.00013972,2]
[351903232,1738833044328,-1861.9,0.00013972,2]
[351903234,1738833044337,-3452.74,0.00013972,2]
[351903236,1738833044346,-1496.04,0.00013972,2]
[351903238,1738833044355,-732.12,0.00013972,2]
[351903240,1738833044365,-1819.26,0.00013972,2]
[351903243,1738833044376,-560.15,0.00013972,2]
[351903245,1738833044386,-500.0,0.00013972,2]
[351903246,1738833044395,-1746.2,0.00013972,2]
[351903248,1738833044405,-1155.84,0.00013972,2]
[351903251,1738833044416,-500.0,0.00013972,2]
[351903252,1738833044427,-500.0,0.00013972,2]
[351903254,1738833044437,-500.0,0.00013972,2]
[351903256,1738833044447,-500.0,0.00013972,2]
[351903258,1738833044458,-839.56,0.00013972,2]
[351903272,1738833044618,-520.1,0.00013972,2]
[351903274,1738833044631,-500.0,0.00013972,2]
[351903276,1738833044644,-633.72,0.00013972,2]
[351903278,1738833044655,-1364.39,0.00013972,2]
[351903280,1738833044666,-500.0,0.00013972,2]
[351903282,1738833044677,-500.0,0.00013972,2]
[351903284,1738833044688,-2017.46,0.00013972,2]
[351903286,1738833044698,-500.0,0.00013972,2]
[351903288,1738833044709,-607.83,0.00013972,2]
[351903290,1738833044719,-500.0,0.00013972,2]
[351903293,1738833044730,-2631.99,0.00013972,2]
[351903295,1738833044740,-8241.48,0.00013972,2]
[351903296,1738833044750,-500.0,0.00013972,2]
[351903299,1738833044760,-500.0,0.00013972,2]
[351903300,1738833044771,-1516.77,0.00013972,2]
[351903302,1738833044788,-3042.29,0.00013972,2]
[351903304,1738833044798,-3774.71,0.00013972,2]
[351903306,1738833044808,-646.7,0.00013972,2]
[351903308,1738833044818,-2714.94,0.00013972,2]
[351903311,1738833044828,-687.46,0.00013972,2]
[351903312,1738833044838,-1212.68,0.00013972,2]
[351903314,1738833044848,-500.0,0.00013972,2]
[351903316,1738833044858,-500.0,0.00013972,2]
[351903318,1738833044868,-500.0,0.00013972,2]
[351903320,1738833044878,-500.0,0.00013972,2]
[351903322,1738833044888,-1500.65,0.00013972,2]
[351903324,1738833044899,-570.19,0.00013972,2]
[351903326,1738833044909,-1456.61,0.00013972,2]
[351903329,1738833044919,-500.0,0.00013972,2]
[351903330,1738833044930,-500.0,0.00013972,2]
[351903333,1738833044940,-1058.45,0.00013972,2]
[351903334,1738833044950,-500.0,0.00013972,2]
[351903336,1738833044961,-500.0,0.00013972,2]
[351903338,1738833044971,-669.86,0.00013972,2]
[351903340,1738833044980,-698.27,0.00013972,2]
[351903342,1738833044990,-11989.68,0.00013972,2]
[351903344,1738833044999,-162.86,0.00013972,2]
[351903346,1738833045009,-584.21,0.00013972,2]
[351903348,1738833045018,-708.6,0.00013972,2]
[351903350,1738833045034,-500.0,0.00013972,2]
[351903352,1738833045044,-500.0,0.00013972,2]
[351903354,1738833045054,-500.0,0.00013972,2]
[351903356,1738833045065,-1222.01,0.00013972,2]
[351903358,1738833045075,-642.47,0.00013972,2]
[351903361,1738833045086,-980.3,0.00013972,2]
[351903362,1738833045096,-500.0,0.00013972,2]
[351903364,1738833045108,-500.0,0.00013972,2]
[351903366,1738833045118,-2948.63,0.00013972,2]
[351903368,1738833045128,-562.56,0.00013972,2]
[351903370,1738833045138,-500.0,0.00013972,2]
[351903373,1738833045148,-590.92567982,0.00013972,2]
[351903384,1738833045253,-500.0,0.00013698,2]
[351903386,1738833045262,-36.76432018,0.00013972,2]
[351903388,1738833045276,-1180.72,0.00013972,2]
[351903390,1738833045286,-6806.43,0.00013972,2]
[351903392,1738833045296,-2962.82,0.00013972,2]
[351903394,1738833045306,-400.0,0.00013973,2]
[351903396,1738833045316,-306.0,0.00014,2]
[351903398,1738833045325,-4998.85484728,0.00014,2]
[351903400,1738833045338,-2963.0,0.00014,2]
[351903403,1738833045348,-1000.0,0.00014,14]
[351903405,1738833045359,-1000.0,0.00014,3]
[351903407,1738833045368,-16612.0,0.00014,2]
[351903409,1738833045378,-771.0,0.000141,5]
[351903411,1738833045387,-938.23703408,0.000141,2]
[351903431,1738833045574,-321.45000009,0.00013698,2]
[351903450,1738833045714,-178.54999991,0.00013698,2]
[351903452,1738833045725,-500.0,0.00013835,2]
[351903454,1738833045734,-500.0,0.00013835,2]
[351903456,1738833045743,-500.0,0.00013972,2]
[351903459,1738833045753,-500.0,0.00013972,2]
[351903462,1738833045762,-584.35209564,0.000141,2]
[351903464,1738833045776,-1522.58912945,0.000141,2]
[351903466,1738833045786,-500.0,0.00014109,2]
[351903468,1738833045795,-500.0,0.00014109,2]
[351903470,1738833045805,-210.56,0.00014109,2]
[351903472,1738833045814,-661.74,0.00014109,2]
[351903474,1738833045824,-500.0,0.00014109,2]
[351903476,1738833045833,-500.0,0.00014109,2]
[351903478,1738833045843,-273.22,0.00014109,2]
[351903480,1738833045853,-229.5921136,0.00014109,2]
[351903482,1738833045863,-1081.41,0.00014109,2]
[351903484,1738833045872,-500.0,0.00014109,2]
[351903486,1738833045881,-500.0,0.00014109,2]
[351903488,1738833045891,-500.0,0.00014109,2]
[351903490,1738833045900,-500.0,0.00014109,2]
[351903492,1738833045910,-500.0,0.00014109,2]
[351903494,1738833045919,-500.0,0.00014109,2]
[351903496,1738833045928,-500.0,0.00014109,2]
[351903498,1738833045937,-500.0,0.00014109,2]
[351903500,1738833045946,-500.0,0.00014109,2]
[351903502,1738833045955,-500.0,0.00014109,2]
[351903504,1738833045964,-500.0,0.00014109,2]
[351903506,1738833045973,-500.0,0.00014109,2]
[351903508,1738833045982,-500.0,0.00014109,2]
[351903509,1738833045992,-1193.32,0.00014109,2]
[351903510,1738833046000,-500.0,0.00014109,2]
[351903511,1738833046010,-1167.66,0.00014109,2]
[351903512,1738833046019,-659.31,0.00014109,2]
[351903513,1738833046034,-500.0,0.00014109,2]
[351903514,1738833046042,-500.0,0.00014109,2]
[351903515,1738833046051,-30.1126361,0.00014109,2]
[351903516,1738833046204,-469.8873639,0.00014109,2]
[351903517,1738833046215,-500.0,0.00014109,2]
[351903518,1738833046224,-536.16,0.00014109,2]
[351903519,1738833046234,-500.0,0.00014109,2]
[351903520,1738833046243,-500.0,0.00014109,2]
[351903521,1738833046253,-500.0,0.00014109,2]
[351903522,1738833046262,-180.26221922,0.00014109,2]
[351903523,1738833046276,-785.12,0.00014109,2]
[351903524,1738833046286,-381.99598469,0.00014109,2]
[351903525,1738833046297,-1246.55,0.00014109,2]
[351903526,1738833046307,-500.0,0.00014109,2]
[351903527,1738833046318,-171.62357203,0.00014109,2]
[351903528,1738833046327,-535.66,0.00014109,2]
[351903529,1738833046337,-500.0,0.00014109,2]
[351903530,1738833046348,-1281.54,0.00014109,2]
[351903531,1738833046359,-500.0,0.00014109,2]
[351903532,1738833046369,-500.0,0.00014109,2]
[351903533,1738833046379,-937.21,0.00014109,2]
[351903534,1738833046389,-574.09,0.00014109,2]
[351903535,1738833046400,-500.0,0.00014109,2]
[351903537,1738833046409,-500.0,0.00014109,2]
[351903538,1738833046419,-551.09,0.00014109,2]
[351903539,1738833046430,-512.72,0.00014109,2]
[351903540,1738833046440,-500.0,0.00014109,2]
[351903541,1738833046451,-500.0,0.00014109,2]
[351903542,1738833046460,-234.65019654,0.00014109,2]
[351903543,1738833046471,-500.0,0.00014109,2]
[351903544,1738833046480,-730.03,0.00014109,2]
[351903545,1738833046489,-500.0,0.00014109,2]
[351903546,1738833046499,-620.43982498,0.00014109,2]
[351903560,1738833046643,-563.09017502,0.00014109,2]
[351903562,1738833046654,-1732.17,0.00014109,2]
[351903564,1738833046663,-500.0,0.00014109,2]
[351903566,1738833046673,-681.46,0.00014109,2]
[351903568,1738833046682,-1080.42,0.00014109,2]
[351903570,1738833046691,-500.0,0.00014109,2]
[351903572,1738833046700,-500.0,0.00014109,2]
[351903574,1738833046709,-35872.88,0.00014109,2]
[351903576,1738833046719,-500.0,0.00014109,2]
[351903577,1738833046728,-62.70157102,0.00014109,2]
[351903580,1738833046740,-437.29842898,0.00014109,2]
[351903582,1738833046749,-500.0,0.00014109,2]
[351903584,1738833046759,-1786.2270132,0.00014109,2]
[351903586,1738833046775,-11419.29799999,0.00014109,2]
[351905590,1738833942127,-2395.93199207,0.00010741,2]
[351905591,1738834034126,-1942.70642546,0.00010741,2]
[351905592,1738834034148,-1719.08542905,0.00010849,2]
[351905593,1738834034170,-300.0,0.00010958,2]
[351905594,1738834034191,-441.17,0.00010959,2]
[351905595,1738834034212,-367.64,0.00010959,2]
[351905596,1738834034233,-306.37,0.00010959,2]
[351905597,1738834034254,-528.71,0.00010959,2]
[351905598,1738834034275,-440.59,0.00010959,2]
[351905599,1738834034296,-445.67,0.00010959,2]
[351905600,1738834034317,-371.4,0.00010959,2]
[351905601,1738834034338,-309.5,0.00010959,2]
[351905602,1738834034360,-257.91,0.00010959,2]
[351905603,1738834034382,-214.93,0.00010959,2]
[351905604,1738834034407,-179.11,0.00010959,2]
[351905605,1738834034428,-895.55,0.00010959,2]
[351905606,1738834034450,-420.0,0.00012042,2]
[351905607,1738834034471,-1000.0,0.00012054,2]
[351905608,1738834034492,-7746.14538753,0.00012128,2]
[351905609,1738834041103,-761.78941462,0.00012128,2]
[351905610,1738834049197,-755.12117611,0.00012128,2]
[351905611,1738834052104,-395.05381609,0.00012128,2]
[351905615,1738834146118,-226.9216,0.00012006,2]
[351905616,1738834146139,-1000.0,0.00012054,2]
[351905617,1738834146159,-300.0,0.00012127,2]
[351905618,1738834146180,-14886.775,0.00012128,2]
[351905619,1738834149110,-305.78828314,0.00012128,2]
[351905620,1738834156158,-49.32692251,0.00012128,2]
[351905621,1738834156180,-353.50122881,0.00013311,2]
[351905653,1738834232389,-300.0,0.00012999,2]
[351905654,1738834232399,-2450.0,0.00013,2]
[351905655,1738834232498,-29154.02638827,0.00013,2]
[351905656,1738834232507,-1000.0,0.00013424,2]
[351905657,1738834232517,-435.40281437,0.00013598,2]
[351905658,1738834232527,-7438.69753278,0.00013666,2]
[351905659,1738834232536,-500.0,0.00013673,2]
[351905660,1738834232546,-500.0,0.00013673,2]
[351905661,1738834232555,-500.0,0.00013673,2]
[351905663,1738834232564,-500.0,0.00013673,2]
[351905665,1738834232573,-500.0,0.00013673,2]
[351905667,1738834232583,-523.53733128,0.00013673,2]
[351905668,1738834232592,-245.73809226,0.00013673,2]
[351905669,1738834232602,-500.0,0.00013673,2]
[351905670,1738834232611,-583.41026086,0.00013673,2]
[351905671,1738834232621,-151.62046531,0.00013673,2]
[351905672,1738834232631,-500.0,0.00013673,2]
[351905673,1738834232640,-500.0,0.00013673,2]
[351905674,1738834232650,-161.40932265,0.00013673,2]
[351905675,1738834232660,-500.0,0.00013673,2]
[351905676,1738834232669,-501.57632144,0.00013673,2]
[351905677,1738834232678,-500.0,0.00013673,2]
[351905678,1738834232687,-336.92353229,0.00013697,2]
[351905679,1738834232696,-500.0,0.00013697,2]
[351905680,1738834232706,-500.0,0.00013697,2]
[351905681,1738834232715,-500.0,0.00013697,2]
[351905682,1738834232725,-500.0,0.00013697,2]
[351905683,1738834232735,-500.0,0.00013697,2]
[351905684,1738834232744,-500.0,0.00013697,2]
[351905685,1738834232754,-500.0,0.00013697,2]
[351905686,1738834232763,-500.0,0.00013697,2]
[351905687,1738834232772,-500.0,0.00013697,2]
[351905688,1738834232781,-500.0,0.00013697,2]
[351905689,1738834232791,-500.0,0.00013697,2]
[351905690,1738834232801,-612.85089912,0.00013697,2]
[351905691,1738834232821,-500.0,0.00013697,2]
[351905692,1738834232832,-500.0,0.00013697,2]
[351905693,1738834232842,-353.78723781,0.00013697,2]
[351905694,1738834232852,-500.0,0.00013697,2]
[351905695,1738834232862,-647.73739751,0.00013697,2]
[351905696,1738834232871,-500.0,0.00013698,2]
[351905697,1738834232881,-500.0,0.00013698,2]
[351905698,1738834232891,-500.0,0.00013698,2]
[351905699,1738834232900,-500.0,0.00013698,2]
[351905700,1738834232910,-500.0,0.00013698,2]
[351905701,1738834232923,-500.0,0.00013698,2]
[351905702,1738834232934,-500.0,0.00013698,2]
[351905703,1738834232943,-500.0,0.00013698,2]
[351905704,1738834232953,-500.0,0.00013698,2]
[351905705,1738834232963,-500.0,0.00013698,2]
[351905706,1738834232973,-500.0,0.00013698,2]
[351905707,1738834232982,-353.57322542,0.00013698,2]
[351905708,1738834232992,-500.0,0.00013698,2]
[351905709,1738834233002,-500.0,0.00013698,2]
[351905710,1738834233012,-500.0,0.00013698,2]
[351905711,1738834233022,-500.0,0.00013698,2]
[351905712,1738834233033,-500.0,0.00013698,2]
[351905713,1738834233044,-500.0,0.00013698,2]
[351905714,1738834233056,-500.0,0.00013698,2]
[351905715,1738834233066,-316.84474611,0.00013698,2]
[351905716,1738834233077,-500.0,0.00013698,2]
[351905717,1738834233087,-523.50836409,0.00013698,2]
[351905718,1738834233097,-345.91555094,0.00013698,2]
[351905719,1738834233108,-500.0,0.00013698,2]
[351905720,1738834233121,-500.0,0.00013698,2]
[351905721,1738834233366,-500.0,0.00013698,2]
[351905722,1738834233375,-500.0,0.00013698,2]
[351905723,1738834233383,-500.0,0.00013698,2]
[351905724,1738834233392,-500.0,0.00013698,2]
[351905725,1738834233402,-502.83508631,0.00013698,2]
[351905726,1738834233411,-500.0,0.00013698,2]
[351905727,1738834233423,-500.0,0.00013698,2]
[351905728,1738834233433,-500.0,0.00013698,2]
[351905729,1738834233442,-500.0,0.00013698,2]
[351905730,1738834233451,-500.0,0.00013698,2]
[351905731,1738834233460,-500.0,0.00013698,2]
[351905732,1738834233470,-500.0,0.00013698,2]
[351905733,1738834233480,-500.0,0.00013698,2]
[351905734,1738834233493,-500.0,0.00013698,2]
[351905735,1738834233507,-500.0,0.00013698,2]
[351905736,1738834233517,-500.0,0.00013698,2]
[351905737,1738834233527,-500.0,0.00013698,2]
[351905738,1738834233536,-500.0,0.00013698,2]
[351905739,1738834233546,-500.0,0.00013698,2]
[351905740,1738834233556,-500.0,0.00013698,2]
[351905741,1738834233566,-500.0,0.00013698,2]
[351905742,1738834233576,-500.0,0.00013698,2]
[351905743,1738834233586,-500.0,0.00013698,2]
[351905744,1738834233599,-528.05960842,0.00013698,2]
[351905745,1738834233610,-500.0,0.00013698,2]
[351905746,1738834233620,-500.0,0.00013698,2]
[351905747,1738834233630,-500.0,0.00013698,2]
[351905748,1738834233640,-500.0,0.00013698,2]
[351905749,1738834233649,-500.0,0.00013698,2]
[351905750,1738834233660,-500.0,0.00013698,2]
[351905751,1738834233670,-500.0,0.00013698,2]
[351905752,1738834233680,-338.00542148,0.00013698,2]
[351905753,1738834233693,-500.0,0.00013698,2]
[351905754,1738834233710,-500.0,0.00013698,2]
[351905755,1738834233721,-505.53283008,0.00013698,2]
[351905756,1738834233732,-500.0,0.00013698,2]
[351905757,1738834233742,-500.0,0.00013698,2]
[351905758,1738834233752,-500.0,0.00013698,2]
[351905759,1738834233764,-500.0,0.00013698,2]
[351905760,1738834233775,-500.0,0.00013698,2]
[351905761,1738834233785,-500.0,0.00013698,2]
[351905762,1738834233796,-500.0,0.00013698,2]
[351905763,1738834233807,-500.0,0.00013698,2]
[351905764,1738834233818,-500.0,0.00013698,2]
[351905765,1738834233828,-504.56818694,0.00013698,2]
[351905766,1738834233838,-500.0,0.00013698,2]
[351905767,1738834233848,-500.0,0.00013698,2]
[351905768,1738834233859,-509.64092162,0.00013698,2]
[351905769,1738834233869,-500.0,0.00013698,2]
[351905770,1738834233879,-250.23317765,0.00013698,2]
[351905771,1738834233889,-500.0,0.00013698,2]
[351905772,1738834233899,-503.93643847,0.00013698,2]
[351905773,1738834233909,-502.0872496,0.00013698,2]
[351905774,1738834233923,-574.16,0.00013698,2]
[351905775,1738834233944,-500.0,0.00013698,2]
[351905776,1738834233962,-500.0,0.00013698,2]
[351905777,1738834233979,-500.0,0.00013698,2]
[351905778,1738834233995,-500.0,0.00013698,2]
[351905779,1738834234005,-500.0,0.00013698,2]
[351905780,1738834234016,-664.04,0.00013698,2]
[351905781,1738834234026,-500.0,0.00013698,2]
[351905782,1738834234036,-500.0,0.00013698,2]
[351905783,1738834234047,-500.0,0.00013698,2]
[351905784,1738834234058,-500.0,0.00013698,2]
[351905785,1738834234069,-500.0,0.00013698,2]
[351905786,1738834234079,-503.46626793,0.00013698,2]
[351905787,1738834234089,-500.0,0.00013698,2]
[351905788,1738834234099,-500.0,0.00013698,2]
[351905789,1738834234109,-500.0,0.00013698,2]
[351905790,1738834234120,-500.0,0.00013698,2]
[351905791,1738834234130,-500.0,0.00013698,2]
[351905792,1738834234140,-500.0,0.00013698,2]
[351905793,1738834234153,-500.0,0.00013698,2]
[351905794,1738834234163,-500.0,0.00013698,2]
[351905795,1738834234173,-500.0,0.00013698,2]
[351905796,1738834234183,-500.0,0.00013698,2]
[351905797,1738834234194,-750.92,0.00013698,2]
[351905798,1738834234205,-500.0,0.00013698,2]
[351905799,1738834234215,-1106.6,0.00013698,2]
[351905800,1738834234226,-500.0,0.00013698,2]
[351905801,1738834234237,-500.0,0.00013698,2]
[351905802,1738834234247,-500.0,0.00013698,2]
[351905803,1738834234257,-2675.64,0.00013698,2]
[351905804,1738834234269,-527.56,0.00013698,2]
[351905805,1738834234279,-500.0,0.00013698,2]
[351905806,1738834234290,-500.0,0.00013698,2]
[351905807,1738834234301,-557.78776249,0.00013698,2]
[351905808,1738834234310,-500.0,0.00013698,2]
[351905809,1738834234320,-500.0,0.00013698,2]
[351905810,1738834234330,-500.0,0.00013698,2]
[351905811,1738834234340,-520.14506571,0.00013698,2]
[351905812,1738834234350,-500.0,0.00013698,2]
[351905813,1738834234361,-500.0,0.00013698,2]
[351905814,1738834234372,-441.5567632,0.00013698,2]
[351905815,1738834234382,-503.29889513,0.00013698,2]
[351905816,1738834234393,-500.0,0.00013698,2]
[351905817,1738834234403,-500.0,0.00013698,2]
[351905818,1738834234413,-500.0,0.00013698,2]
[351905819,1738834234422,-500.0,0.00013698,2]
[351905820,1738834234432,-500.0,0.00013698,2]
[351905821,1738834234442,-757.91,0.00013698,2]
[351905822,1738834234452,-505.40138683,0.00013698,2]
[351905823,1738834234462,-500.0,0.00013698,2]
[351905824,1738834234472,-509.44014121,0.00013698,2]
[351905825,1738834234482,-500.0,0.00013698,2]
[351905826,1738834234492,-500.0,0.00013698,2]
[351905827,1738834234502,-1339.04,0.00013698,2]
[351905828,1738834234513,-500.0,0.00013698,2]
[351905829,1738834234523,-500.0,0.00013698,2]
[351905830,1738834234533,-500.0,0.00013698,2]
[351905831,1738834234544,-500.0,0.00013698,2]
[351905832,1738834234556,-534.32149495,0.00013698,2]
[351905833,1738834234567,-1309.14,0.00013698,2]
[351905834,1738834234577,-500.0,0.00013698,2]
[351905835,1738834234587,-500.0,0.00013698,2]
[351905836,1738834234597,-500.0,0.00013698,2]
[351905837,1738834234608,-500.0,0.00013698,2]
[351905838,1738834234618,-508.66649537,0.00013698,2]
[351905839,1738834234629,-616.48,0.00013698,2]
[351905840,1738834234640,-500.0,0.00013698,2]
[351905841,1738834234650,-500.0,0.00013698,2]
[351905842,1738834234661,-500.0,0.00013698,2]
[351905843,1738834234671,-501.71078274,0.00013698,2]
[351905844,1738834234681,-500.0,0.00013698,2]
[351905845,1738834234690,-500.0,0.00013698,2]
[351905846,1738834234700,-500.0,0.00013698,2]
[351905847,1738834234710,-500.0,0.00013698,2]
[351905848,1738834234720,-500.0,0.00013698,2]
[351905849,1738834234730,-500.0,0.00013698,2]
[351905850,1738834234740,-500.0,0.00013698,2]
[351905851,1738834234750,-500.0,0.00013698,2]
[351905852,1738834234760,-500.0,0.00013698,2]
[351905853,1738834234770,-500.0,0.00013698,2]
[351905854,1738834234781,-500.0,0.00013698,2]
[351905855,1738834234791,-500.0,0.00013698,2]
[351905856,1738834234803,-500.0,0.00013698,2]
[351905857,1738834234813,-506.50061272,0.00013698,2]
[351905858,1738834234824,-972.58,0.00013698,2]
[351905859,1738834234834,-501.80219771,0.00013698,2]
[351905860,1738834234844,-500.0,0.00013698,2]
[351905861,1738834234854,-500.0,0.00013698,2]
[351905862,1738834234863,-345.55891214,0.00013698,2]
[351905863,1738834234874,-500.0,0.00013698,2]
[351905864,1738834234884,-500.0,0.00013698,2]
[351905865,1738834234894,-500.0,0.00013698,2]
[351905866,1738834234904,-500.0,0.00013698,2]
[351905867,1738834234915,-202.2442338,0.00013698,2]
[351905868,1738834234928,-500.0,0.00013698,2]
[351905869,1738834234938,-500.0,0.00013698,2]
[351905870,1738834234948,-500.0,0.00013698,2]
[351905871,1738834234958,-506.40964396,0.00013698,2]
[351905872,1738834234968,-500.0,0.00013698,2]
[351905873,1738834234979,-504.71568762,0.00013698,2]
[351905874,1738834234989,-1184.34,0.00013698,2]
[351905875,1738834234999,-500.0,0.00013698,2]
[351905876,1738834235010,-500.0,0.00013698,2]
[351905877,1738834235031,-500.0,0.00013698,2]
[351905878,1738834235043,-500.0,0.00013698,2]
[351905879,1738834235058,-500.0,0.00013698,2]
[351905880,1738834235069,-500.0,0.00013698,2]
[351905881,1738834235080,-500.0,0.00013698,2]
[351905882,1738834235091,-500.0,0.00013698,2]
[351905883,1738834235102,-500.0,0.00013698,2]
[351905884,1738834235113,-636.86,0.00013698,2]
[351905885,1738834235124,-500.0,0.00013698,2]
[351905886,1738834235135,-505.92911704,0.00013698,2]
[351905887,1738834235146,-500.0,0.00013698,2]
[351905888,1738834235157,-504.44228573,0.00013698,2]
[351905889,1738834235167,-500.0,0.00013698,2]
[351905890,1738834235178,-1600.88,0.00013698,2]
[351905891,1738834235188,-506.42217585,0.00013698,2]
[351905892,1738834235199,-500.0,0.00013698,2]
[351905893,1738834235209,-500.0,0.00013698,2]
[351905894,1738834235219,-500.0,0.00013698,2]
[351905895,1738834235230,-500.0,0.00013698,2]
[351905896,1738834235241,-477.57687456,0.00013698,2]
[351905897,1738834235252,-500.0,0.00013698,2]
[351905898,1738834235262,-507.52446146,0.00013698,2]
[351905899,1738834235272,-500.0,0.00013698,2]
[351905900,1738834235283,-500.0,0.00013698,2]
[351905901,1738834235294,-500.0,0.00013698,2]
[351905902,1738834235306,-500.0,0.00013698,2]
[351905903,1738834235318,-1110.8,0.00013698,2]
[351905904,1738834235329,-500.0,0.00013698,2]
[351905905,1738834235339,-500.0,0.00013698,2]
[351905906,1738834235350,-500.0,0.00013698,2]
[351905907,1738834235360,-500.0,0.00013698,2]
[351905908,1738834235370,-500.0,0.00013698,2]
[351905909,1738834235380,-500.0,0.00013698,2]
[351905910,1738834235390,-500.0,0.00013698,2]
[351905911,1738834235402,-500.0,0.00013698,2]
[351905912,1738834235412,-500.0,0.00013698,2]
[351905913,1738834235422,-302.84087075,0.00013698,2]
[351905914,1738834235432,-500.0,0.00013698,2]
[351905915,1738834235443,-621.92,0.00013698,2]
[351905916,1738834235453,-500.0,0.00013698,2]
[351905917,1738834235463,-500.0,0.00013698,2]
[351905918,1738834235473,-500.0,0.00013698,2]
[351905919,1738834235483,-672.08,0.00013698,2]
[351905920,1738834235493,-500.0,0.00013698,2]
[351905921,1738834235503,-500.0,0.00013698,2]
[351905922,1738834235513,-500.0,0.00013698,2]
[351905923,1738834235523,-500.0,0.00013698,2]
[351905924,1738834235534,-651.0,0.00013698,2]
[351905925,1738834235544,-300.97825926,0.00013698,2]
[351905926,1738834235557,-502.22760959,0.00013698,2]
[351905927,1738834235568,-500.0,0.00013698,2]
[351905928,1738834235578,-500.0,0.00013698,2]
[351905929,1738834235588,-500.0,0.00013698,2]
[351905930,1738834235598,-500.0,0.00013698,2]
[351905931,1738834235607,-500.0,0.00013698,2]
[351905932,1738834235617,-500.0,0.00013698,2]
[351905933,1738834235626,-3154.41,0.00013698,2]
[351905934,1738834235636,-603.7,0.00013698,2]
[351905935,1738834235646,-14070.43,0.00013698,2]
[351905936,1738834235656,-500.0,0.00013698,2]
[351905937,1738834235667,-500.0,0.00013698,2]
[351905938,1738834235677,-500.0,0.00013698,2]
[351905939,1738834235687,-500.0,0.00013698,2]
[351905940,1738834235697,-1109.57,0.00013698,2]
[351905941,1738834235707,-500.0,0.00013698,2]